[Event "Marshall CC FIDE Premier February 2024"]
[Site "New York"]
[Date "2024.02.04"]
[Round "3.3"]
[White "Williams, Justus"]
[Black "Zhu, Linxi"]
[Result "1-0"]
[ECO "A58"]
[WhiteElo "2382"]
[BlackElo "1868"]
[Annotator "RC"]
[PlyCount "77"]
[EventDate "2024.02.02"]
[EventType "swiss"]
[EventCountry "USA"]
[SourceTitle "playchess.com"]
[Source "ChessBase"]
[SourceQuality "1"]
[TimeControl "5400+30"]

1. d4 {[%emt 0:02:35]} Nf6 {[%emt 0:00:11]} 2. c4 {[%emt 0:02:01]} c5 {[%emt 0:00:10]} 3. d5 {[%emt 0:00:05]} b5 {[%emt 0:00:51]} 4. cxb5 {[%emt 0:02:55]} a6 {[%emt 0:00:26]} 5. bxa6 {[%emt 0:00:18]} g6 {[%emt 0:00:07]} 6. Nc3 {[%emt 0:00:06]} Bxa6 {[%emt 0:00:05]} 7. g3 {[%emt 0:00:43]} Bg7 {[%emt 0:01:32]} 8. Bg2 {[%emt 0:00:07]} d6 {[%emt 0:00:12]} 9. Nf3 {[%emt 0:00:13]} O-O {[%emt 0:00:41]} 10. Rb1 {[%emt 0:02:23]} Nbd7 {[%emt 0:00:50]} 11. b3 {[%emt 0:03:20]} Qa5 {[%emt 0:03:30]} 12. Bd2 {[%emt 0:00:40]} Rfb8 {[%emt 0:02:31]} 13. Qc2 {[%emt 0:05:08]} Qc7 {[%emt 0:06:07]} 14. O-O {[%emt 0:05:23]} Nb6 {[%emt 0:03:26]} 15. Nh4 {[%emt 0:02:10]} Bb7 {[%emt 0:04:35]} 16. e4 {[%emt 0:02:26]} Ba6 {[%emt 0:00:44]} 17. Rfd1 {[%emt 0:01:24]} Ng4 {[%emt 0:00:35]} 18. h3 {[%emt 0:03:02]} Ne5 {[%emt 0:00:58]} 19. Be3 {[%emt 0:01:30]} c4 {[%emt 0:04:19]} 20. b4 {[%emt 0:02:13]} Nd3 {[%emt 0:01:29]} 21. Nf3 {[%emt 0:02:32]} Bc8 {[%emt 0:07:34]} 22. Nd4 {[%emt 0:04:40]} Bd7 {[%emt 0:02:04]} 23. Nc6 {[%emt 0:00:44]} Bxc6 {[%emt 0:01:48]} 24. dxc6 {[%emt 0:00:14]} Bxc3 {[%emt 0:03:00]} 25. Qxc3 {[%emt 0:00:35]} Rxa2 {[%emt 0:00:19]} 26. b5 {[%emt 0:01:03]} e5 {[%emt 0:02:56]} 27. Ra1 {[%emt 0:03:59]} Rba8 {[%emt 0:01:48]} 28. Rxa2 {[%emt 0:02:51]} Rxa2 {[%emt 0:00:05]} 29. Bf1 {[%emt 0:06:34]} Nb2 {[%emt 0:00:25]} 30. Rb1 {[%emt 0:01:30]} N2a4 {[%emt 0:01:50]} 31. Qa5 {[%emt 0:02:38]} c3 {[%emt 0:00:42]} 32. Rc1 {[%emt 0:01:02]} c2 {[%emt 0:04:28]} 33. Bd3 {[%emt 0:04:40]} Kg7 {[%emt 0:02:48]} 34. Bxc2 {[%emt 0:01:07]} Qb8 {[%emt 0:03:42]} 35. Bb3 {[%emt 0:00:36]} Ra3 {[%emt 0:00:13]} 36. Bxa4 {[%emt 0:00:53]} Nxa4 {[%emt 0:00:07]} 37. c7 {[%emt 0:00:04]} Qc8 {[%emt 0:00:03]} 38. Qa6 {[%emt 0:00:12]} Qxa6 {[%emt 0:00:07]} 39. bxa6 {[%emt 0:00:04]} 1-0

[Event "Marshall CC FIDE Premier February 2024"]
[Site "New York"]
[Date "2024.02.04"]
[Round "3.4"]
[White "Hebbar, Eshaan"]
[Black "Klein, Ethan"]
[Result "1-0"]
[ECO "D32"]
[WhiteElo "2018"]
[BlackElo "1923"]
[Annotator "RC"]
[PlyCount "55"]
[EventDate "2024.02.02"]
[EventType "swiss"]
[EventCountry "USA"]
[SourceTitle "playchess.com"]
[Source "ChessBase"]
[SourceQuality "1"]
[TimeControl "5400+30"]

1. d4 {[%emt 0:00:03]} d5 {[%emt 0:04:52]} 2. c4 {[%emt 0:00:05]} e6 {[%emt 0:00:22]} 3. Nc3 {[%emt 0:00:05]} c5 {[%emt 0:00:05]} 4. cxd5 {[%emt 0:00:09]} cxd4 {[%emt 0:00:04]} 5. Qa4+ {[%emt 0:00:11]} Bd7 {[%emt 0:00:17]} 6. Qxd4 {[%emt 0:00:04]} exd5 {[%emt 0:00:12]} 7. Qxd5 {[%emt 0:01:15]} Nf6 {[%emt 0:00:16]} 8. Qxb7 {[%emt 0:03:59]} Nc6 {[%emt 0:00:36]} 9. Bf4 {[%emt 0:03:21]} Bb4 {[%emt 0:03:09]} 10. Rc1 {[%emt 0:05:59]} O-O {[%emt 0:01:27]} 11. e3 {[%emt 0:01:29]} Qa5 {[%emt 0:02:08]} 12. Bc4 {[%emt 0:05:21]} Rac8 {[%emt 0:18:08]} 13. Nge2 {[%emt 0:03:01]} Nb8 {[%emt 0:04:12]} 14. Bxb8 {[%emt 0:07:53]} Rxb8 {[%emt 0:01:15]} 15. Qa6 {[%emt 0:00:04]} Qe5 {[%emt 0:06:04]} 16. O-O {[%emt 0:05:15]} Ng4 {[%emt 0:03:48]} 17. Ng3 {[%emt 0:03:25]} h5 {[%emt 0:02:42]} 18. Qxa7 {[%emt 0:01:54]} Bc6 {[%emt 0:02:00]} 19. Qd4 {[%emt 0:01:36]} Qg5 {[%emt 0:02:35]} 20. Nce4 {[%emt 0:08:15]} Bxe4 {[%emt 0:02:35]} 21. Nxe4 {[%emt 0:00:48]} Qh4 {[%emt 0:00:34]} 22. h3 {[%emt 0:00:02]} Rfd8 {[%emt 0:00:38]} 23. Bd5 {[%emt 0:05:43]} Rb5 {[%emt 0:02:48]} 24. Bxf7+ {[%emt 0:01:41]} Kxf7 {[%emt 0:00:22]} 25. Rc7+ {[%emt 0:00:09]} Ke8 {[%emt 0:03:32]} 26. Qxg7 {[%emt 0:00:23]} Be7 {[%emt 0:02:10]} 27. g3 {[%emt 0:00:16]} Qxh3 {[%emt 0:01:06]} 28. Rxe7# {[%emt 0:00:09]} 1-0

[Event "Marshall CC FIDE Premier February 2024"]
[Site "New York"]
[Date "2024.02.04"]
[Round "3.5"]
[White "Jiang, Jason"]
[Black "Shen, Leo Xiaohang"]
[Result "1-0"]
[ECO "D10"]
[WhiteElo "1864"]
[BlackElo "1488"]
[Annotator "NA RC"]
[PlyCount "117"]
[EventDate "2024.02.02"]
[EventType "swiss"]
[EventCountry "USA"]
[SourceTitle "playchess.com"]
[Source "ChessBase"]
[SourceQuality "1"]
[TimeControl "5400+30"]

1. c4 {[%emt 0:00:04]} c6 {[%emt 0:00:01]} 2. Nc3 {[%emt 0:00:14]} d5 {[%emt 0:00:03]} 3. cxd5 {[%emt 0:00:10]} cxd5 {[%emt 0:00:01]} 4. d4 {[%emt 0:00:06]} Nc6 {[%emt 0:00:15]} 5. Bf4 {[%emt 0:00:20]} Nf6 {[%emt 0:00:42]} 6. e3 {[%emt 0:00:17]} a6 {[%emt 0:00:13]} 7. Bd3 {[%emt 0:01:37]} Bg4 {[%emt 0:00:29]} 8. Nge2 {[%emt 0:06:14]} e6 {[%emt 0:00:28]} 9. Qb3 {[%emt 0:02:08] D10: Slav Defence: 3 cxd5 (without early Nf3) and 3 Nc3.} Na5 {[%emt 0:00:38]} 10. Qc2 {[%emt 0:00:47]} Bd6 {[%emt 0:00:34]} 11. O-O {[%emt 0:02:59]} O-O {[%emt 0:00:39]} 12. Bxd6 {[%emt 0:08:44]} Qxd6 {[%emt 0:00:11]} 13. Ng3 {[%emt 0:00:16]} Nc6 {[%emt 0:04:25]} 14. h3 {[%emt 0:05:28]} Nb4 {[%emt 0:00:21]} 15. Qd2 {[%emt 0:02:03]} Nxd3 {[%emt 0:00:43]} 16. Qxd3 {[%emt 0:00:16]} Bh5 {[%emt 0:00:09]} 17. Rac1 {[%emt 0:02:42]} Bg6 {[%emt 0:00:09]} 18. Qd2 {[%emt 0:00:18]} Rac8 {[%emt 0:00:48]} 19. Na4 {[%emt 0:01:10]} Nd7 {[%emt 0:00:50]} 20. Rxc8 {[%emt 0:01:57]} Rxc8 {[%emt 0:00:03]} 21. Rc1 {[%emt 0:00:11]} Rc6 {[%emt 0:00:52]} 22. b3 {[%emt 0:00:56]} h6 {[%emt 0:00:34]} 23. Rxc6 {[%emt 0:01:00]} Qxc6 {[%emt 0:00:11]} 24. Qc3 {[%emt 0:00:40]} Qxc3 {[%emt 0:00:39]} 25. Nxc3 {[%emt 0:00:06]} Kf8 {[%emt 0:01:23]} 26. f3 {[%emt 0:00:21]} Ke7 {[%emt 0:00:54]} 27. Kf2 {[%emt 0:00:28]} Kd6 {[%emt 0:00:20]} 28. e4 {[%emt 0:00:33]} f6 {[%emt 0:00:35]} 29. Ke3 {[%emt 0:00:31]} Bh7 {[%emt 0:01:05]} 30. Nh5 {[%emt 0:01:34]} g5 {[%emt 0:00:55]} 31. Nxf6 {[%emt 0:01:18]} Nxf6 {[%emt 0:00:05]} 32. e5+ {[%emt 0:00:04]} Ke7 {[%emt 0:00:09]} 33. exf6+ {[%emt 0:00:03]} Kxf6 {[%emt 0:00:03]} 34. b4 {[%emt 0:07:54]} Bg6 {[%emt 0:02:13]} 35. Na4 {[%emt 0:06:31]} Be8 {[%emt 0:00:17]} 36. Nc5 {[%emt 0:00:37]} Bc6 {[%emt 0:00:04]} 37. Nd3 {[%emt 0:02:14]} b6 {[%emt 0:00:25]} 38. f4 {[%emt 0:01:06]} Bb5 {[%emt 0:01:02]} 39. fxg5+ {[%emt 0:01:00]} Kxg5 {[%emt 0:00:56]} 40. g3 {[%emt 0:10:35]} Kf5 {[%emt 0:01:19]} 41. Ne5 {[%emt 0:02:00]} Bf1 {[%emt 0:01:35]} 42. g4+ {[%emt 0:00:32]} Kg5 {[%emt 0:00:49]} 43. Nf3+ {[%emt 0:00:52]} Kf6 {[%emt 0:00:43]} 44. h4 {[%emt 0:00:15]} Bh3 {[%emt 0:00:46]} 45. Kf4 {[%emt 0:00:11]} a5 {[%emt 0:01:21]} 46. a3 {[%emt 0:00:42]} axb4 {[%emt 0:00:09]} 47. axb4 {[%emt 0:00:08]} Bf1 {[%emt 0:01:34]} 48. g5+ {[%emt 0:00:55]} hxg5+ {[%emt 0:00:36]} 49. hxg5+ {[%emt 0:00:24]} Kg7 {[%emt 0:00:52]} 50. Ke5 {[%emt 0:00:53]} Bh3 {[%emt 0:01:11]} 51. Ne1 {[%emt 0:02:48]} Bf5 {[%emt 0:03:14]} 52. Ng2 {[%emt 0:00:54]} Kg6 {[%emt 0:04:21]} 53. Nf4+ {[%emt 0:00:18]} Kxg5 {[%emt 0:00:26]} 54. Nxe6+ {[%emt 0:00:08]} Kg4 {[%emt 0:01:39]} 55. Nc7 {[%emt 0:00:23]} Bc8 {[%emt 0:01:58]} 56. Nxd5 {[%emt 0:00:15]} b5 {[%emt 0:00:14]} 57. Nc7 {[%emt 0:00:09]} Kf3 {[%emt 0:01:53]} 58. Nxb5 {[%emt 0:00:11]} Ke3 {[%emt 0:00:11]} 59. Nd6 {[%emt 0:00:06]} 1-0

[Event "Marshall CC FIDE Premier February 2024"]
[Site "New York"]
[Date "2024.02.04"]
[Round "4.1"]
[White "Bortnyk, Mykola"]
[Black "Williams, Justus"]
[Result "1-0"]
[ECO "B11"]
[WhiteElo "2421"]
[BlackElo "2382"]
[Annotator "TA"]
[PlyCount "101"]
[EventDate "2024.02.02"]
[EventType "swiss"]
[EventCountry "USA"]
[SourceTitle "playchess.com"]
[Source "ChessBase"]
[SourceQuality "1"]
[TimeControl "5400+30"]

{[%evp 14,101,-17,-42,-41,-41,-35,-34,-24,-18,-21,-33,-24,-60,-62,-82,-65,-77,-60,-70,-64,-46,-54,-81,-81,-90,-83,-80,-35,-41,-19,-79,-44,-33,-41,-59,-44,-35,-20,-16,-29,-18,-26,-23,-12,-42,-34,-76,0,0,219,221,218,210,217,202,161,35,33,0,0,0,0,0,0,0,0,0,0,0,452,466,443,408,383,337,562,492,651,644,806,810,5197,0,5782,5110,29982,29983,29983,29984]} 1. e4 {[%emt 0:01:46]} c6 {[%emt 0:05:52]} 2. Nc3 {[%emt 1:29:44]} d5 {[%emt 0:00:16]} 3. Qf3 {[%emt 0:00:44]} Nf6 {[%emt 0:07:03]} 4. e5 {[%emt 0:03:32]} Nfd7 {[%emt 0:00:43]} 5. Qg3 {[%emt 0:01:18]} e6 {[%emt 0:00:36]} 6. Nf3 {[%emt 0:00:50] B11: Caro-Kann: Two Knights Variation.} a6 {[%emt 0:03:15]} 7. b4 $146 {[%emt 0:08:08]} ({Predecessor:} 7. d4 c5 8. Bg5 Qa5 9. Bd2 cxd4 10. Nb5 Qd8 11. Nbxd4 Nc6 12. O-O-O Nc5 13. Bd3 {0-1 Jarvenpaa,J (2272)-Novik,M (2474) FIN-chT 1415 2014 (5.1)}) 7... f6 {[%emt 0:07:31]} 8. Bd3 {[%emt 0:02:38]} Nxe5 $1 {[%emt 0:02:28]} 9. Nxe5 {[%emt 0:00:34]} fxe5 {[%emt 0:00:07]} 10. Qxe5 {[%emt 0:02:30]} Qf6 {[%emt 0:00:56]} 11. Qxf6 {[%emt 0:14:26]} gxf6 {[%emt 0:00:03]} 12. a3 {[%emt 0:00:40]} Nd7 {[%emt 0:04:26]} 13. Bb2 {[%emt 0:00:29]} a5 {[%emt 0:03:00]} 14. Na2 {[%emt 0:04:57]} b5 {[%emt 0:04:02]} 15. O-O {[%emt 0:01:28]} Kf7 {[%emt 0:06:02]} 16. f4 {[%emt 0:52:04]} Bb7 {[%emt 0:04:27]} 17. Be2 {[%emt 0:04:09]} h5 {[%emt 0:02:53]} 18. d3 {[%emt 0:00:57]} Bd6 {[%emt 0:04:36]} 19. c4 {[%emt 0:00:57]} bxc4 {[%emt 0:03:20]} 20. dxc4 {[%emt 0:00:29]} Ke7 {[%emt 0:01:05]} 21. c5 {[%emt 0:04:54]} Bc7 {[%emt 0:01:12]} 22. Nc3 {[%emt 0:01:48]} (22. Nc1 $11) 22... axb4 {[%emt 0:01:13]} 23. axb4 {[%emt 0:00:15]} Rxa1 {[%emt 0:00:20]} 24. Bxa1 {[%emt 0:01:34]} h4 {[%emt 0:03:12]} 25. Bb2 {[%emt 0:05:07]} Ra8 {[%emt 0:02:45]} 26. g3 $1 {[%emt 0:01:28]} hxg3 {[%emt 0:03:51]} 27. hxg3 {[%emt 0:00:14]} e5 {[%emt 0:02:36]} 28. Kg2 {[%emt 0:06:49]} Rg8 {[%emt 0:04:26]} 29. Bc1 {[%emt 0:02:44]} Nf8 {[%emt 0:04:31]} 30. f5 {[%emt 0:01:30]} Nd7 {[%emt 0:01:08]} (30... e4 $1 $17 31. g4 Rh8) 31. Rh1 $11 {[%emt 0:02:07]} Rg7 $2 {[%emt 0:01:28]} (31... e4 $11) 32. Rh8 $18 {[%emt 0:00:57]} e4 {[%emt 0:00:40]} 33. g4 {[%emt 0:00:04]} Be5 {[%emt 0:03:36]} 34. Bh6 {[%emt 0:01:27]} Rf7 {[%emt 0:00:02]} 35. Na4 {[%emt 0:00:50]} (35. Na2 $18) 35... Nf8 $1 $14 {[%emt 0:05:54]} 36. Kf2 {[%emt 0:21:40]} Nh7 {[%emt 0:01:19]} 37. Nb6 {[%emt 0:04:07]} Ng5 {[%emt 0:00:52]} 38. Nxd5+ {[%emt 0:02:35]} cxd5 {[%emt 0:01:18]} 39. Bb5 {[%emt 0:00:01]} Rh7 {[%emt 0:01:09]} 40. Re8+ {[%emt 0:00:16]} Kf7 {[%emt 0:00:02]} 41. Bxg5 {[%emt 0:15:28]} d4 $2 {[%emt 0:03:37][%mdl 8192] [#]} (41... Rh2+ $11 42. Kg1 Rb2 43. Rxe5 fxe5) 42. Rxe5 $1 $18 {[%emt 0:01:06]} fxe5 {[%emt 0:00:34]} 43. c6 {[%emt 0:00:03]} e3+ {[%emt 0:01:46]} 44. Kf3 {[%emt 0:01:39]} Ba8 $2 {[%emt 0:00:40] [#]} (44... e4+ {keeps fighting.} 45. Kxe4 e2 46. Bxe2 (46. cxb7 $2 e1=Q+ 47. Kd5 Qh1+ 48. Ke5 Qxb7 $19) (46. Bd2 Bxc6+ 47. Bxc6 Rh1 $18) 46... Bxc6+ 47. Kxd4 Ke8) 45. Bc4+ $1 $18 {[%emt 0:00:19]} Ke8 {[%emt 0:00:20]} 46. b5 {[%emt 0:00:03]} Rh2 {[%emt 0:01:03]} 47. f6 {[%emt 0:00:05]} e2 {[%emt 0:00:11]} 48. f7+ {[%emt 0:00:24]} ({Weaker is} 48. Bxe2 e4+ 49. Kxe4 Rxe2+ 50. Kxd4 Kf7 $11) 48... Kf8 {[%emt 0:00:06]} 49. Bd2 $1 {[%emt 0:14:30]} ({Stronger than} 49. Bxe2 e4+ 50. Kxe4 Rxe2+ 51. Kxd4 (51. Kd3 $2 Rb2 $19) 51... Kxf7 $11) 49... e4+ {[%emt 0:00:41]} 50. Kxe4 {[%emt 0:00:22]} Kg7 {[%emt 0:00:44]} 51. Bb4 {[%emt 0:15:07]} 1-0

[Event "Marshall CC FIDE Premier February 2024"]
[Site "New York"]
[Date "2024.02.04"]
[Round "4.2"]
[White "Hughes, John L"]
[Black "Hebbar, Eshaan"]
[Result "1/2-1/2"]
[ECO "C28"]
[WhiteElo "2167"]
[BlackElo "2018"]
[Annotator "TA"]
[PlyCount "89"]
[EventDate "2024.02.02"]
[EventType "swiss"]
[EventCountry "USA"]
[SourceTitle "playchess.com"]
[Source "ChessBase"]
[SourceQuality "1"]
[TimeControl "5400+30"]

{[%evp 11,89,-4,37,33,31,10,35,8,0,-4,36,0,0,4,12,13,3,-38,23,24,56,0,0,0,-18,-20,12,10,9,6,120,92,129,142,164,168,245,218,581,587,535,173,170,181,175,186,181,91,71,44,49,37,183,182,232,87,79,0,0,0,0,0,0,0,0,0,0,0,0,0,0,0,0,0,0,0,0,0,0,0]} 1. e4 {[%emt 0:05:24]} e5 {[%emt 0:00:02]} 2. Nc3 {[%emt 0:00:15]} Nc6 {[%emt 0:00:37]} 3. Bc4 {[%emt 0:00:12]} Nf6 {[%emt 0:00:19]} 4. d3 {[%emt 0:00:09]} Bc5 {[%emt 0:00:37]} 5. Bg5 {[%emt 0:00:32][%cal Bc1g5,Bg5h4,Bh4g3][%mdl 32]} h6 {[%emt 0:02:24]} 6. Bh4 {[%emt 0:00:23]} g5 {[%emt 0:02:08]} 7. Bg3 {[%emt 0:00:30]} d6 {[%emt 0:00:02]} 8. Na4 {[%emt 0:08:15]} Bb6 {[%emt 0:01:05]} 9. Nxb6 {[%emt 0:01:16] White is slightly better.} axb6 {[%emt 0:00:03]} 10. h4 {[%emt 0:00:12] Hoping for hxg5.} g4 {[%emt 0:13:33]} (10... Ke7 {looks sharper.} 11. Nf3 Bg4 12. c3 Qg8) 11. a4 {[%emt 0:04:31]} Nh5 {[%emt 0:01:45]} 12. Ne2 {[%emt 0:01:56]} Be6 {[%emt 0:03:23]} 13. Bb5 {[%emt 0:04:07]} O-O {[%emt 0:03:24]} 14. d4 {[%emt 0:07:14]} Nxg3 {[%emt 0:10:16]} (14... exd4 $15 15. O-O (15. Nxd4 Qf6 $11) 15... Qf6 (15... Nxg3 16. fxg3 Bd7 17. Qd2 $16)) 15. fxg3 $11 {[%emt 0:00:24] Black must now prevent d5.} exd4 {[%emt 0:00:07]} 16. Bxc6 {[%emt 0:15:27]} (16. Nxd4 Qf6 17. Nxe6 (17. Bxc6 bxc6 18. Rf1 Qe5 $17) 17... fxe6 18. Qxg4+ Kh7 $17) (16. O-O $14) 16... bxc6 {[%emt 0:00:03]} 17. Nf4 {[%emt 0:00:12][%cal Oe1g1]} Qf6 {[%emt 0:15:23]} 18. O-O {[%emt 0:02:50]} Qe5 {[%emt 0:00:13] Prevents Nd5.} 19. Nxe6 {[%emt 0:01:49]} Qxe6 {[%emt 0:00:07]} 20. Qxd4 {[%emt 0:05:37]} Rfe8 {[%emt 0:00:22]} (20... Ra5 $11) 21. Rf4 $16 {[%emt 0:02:03]} Ra5 {[%emt 0:07:52]} 22. Raf1 {[%emt 0:03:42]} Re7 {[%emt 0:07:27]} 23. Kh2 {[%emt 0:11:58]} c5 {[%emt 0:04:14]} (23... h5 {might work better.} 24. Qd2 Re5) 24. Qd2 $18 {[%emt 0:08:24]} Rxa4 $2 {[%emt 0:05:32]} (24... c4 {is a better chance.} 25. Rf6 Qxe4) 25. Rf6 {[%emt 0:01:10]} Qxe4 {[%emt 0:03:46]} 26. Qxh6 {[%emt 0:10:09]} (26. R6f4 Qc6 27. Rf5 (27. Rf6 Kf8 $18)) 26... Qh7 {[%emt 0:10:02] [#]} (26... Qe3 27. Rg6+ fxg6 28. Rf8#) 27. Qg5+ {[%emt 0:00:41][%mdl 1024] White has strong compensation.} Qg7 {[%emt 0:00:15]} 28. Qf5 {[%emt 0:00:45] Strongly threatening Qc8+.} Rae4 {[%emt 0:01:28] [#]} 29. Qd5 {[%emt 0:03:38]} (29. Qc8+ $1 $18 Kh7 30. R6f5) 29... R4e5 $16 {[%emt 0:00:59]} 30. Qb7 {[%emt 0:00:29] White is more active.} Kh7 {[%emt 0:02:15]} 31. R1f4 {[%emt 0:00:34]} d5 {[%emt 0:01:47]} ({Black should try} 31... R5e6 $1 $14 32. R6f5 (32. Rxe6 fxe6 33. c4 Qg8 $14) 32... Re5) 32. Qc8 $18 {[%emt 0:00:37]} d4 {[%emt 0:01:14]} (32... c4 $142 33. c3 (33. Qxg4 Qxg4 34. Rxg4 Rd7 $15) 33... b5) 33. R6f5 {[%emt 0:00:40]} (33. b3 $1 $18) 33... Rxf5 $16 {[%emt 0:02:49]} 34. Qxf5+ {[%emt 0:00:12][%mdl 4096] Endgame. KQR-KQR} ({White should play} 34. Rxf5 $16 {Rh5+ would kill now.} Re5 35. Rf4) 34... Qg6 $11 {[%emt 0:00:15] And now ...Qxf5 would win. The position is equal.} 35. Qd5 {[%emt 0:00:41][%cal Ob2b4]} Kg7 {[%emt 0:01:22]} (35... Qxc2 $2 36. Rxg4 $18) 36. Qd8 {[%emt 0:00:55]} (36. b4 $5 c6 $8 (36... cxb4 $2 {loses.} 37. Qxd4+ Kh7 38. Rxg4 $18) (36... Qxc2 $2 {too greedy.} 37. Rxg4+ Kf6 38. Qc6+ Re6 39. Qxc7 $18) 37. Qd8 $11) 36... Re4 {[%emt 0:00:20] Threatens to win with ...Rxf4.} 37. Qxc7 {[%emt 0:00:27]} Rxf4 {[%emt 0:00:07]} 38. gxf4 {[%emt 0:00:37]} Qxc2 {[%emt 0:00:21] KQ-KQ} 39. Qe5+ {[%emt 0:00:03]} Kg8 {[%emt 0:00:10]} 40. Qe8+ {[%emt 0:00:16]} Kg7 {[%emt 0:00:01][%cal Oc2g6]} 41. Qe5+ {[%emt 0:00:03]} Kh7 {[%emt 0:01:06]} 42. Qh5+ {[%emt 0:01:28]} Kg8 {[%emt 0:02:15]} 43. Qxg4+ {[%emt 0:01:13]} Qg6 {[%emt 0:00:30]} 44. Qc8+ Kg7 {[%emt 0:00:30] aiming for ...d3.} 45. Qd7 {Weighted Error Value: White=0.27 (precise) /Black=0.34.  Mistake:       	White=5     	Black=6      Inaccurate:     	White=4     	Black=4      OK:         	White=18    	Black=10     Best:        	White=4     	Black=5} 1/2-1/2

[Event "Marshall CC FIDE Premier February 2024"]
[Site "New York"]
[Date "2024.02.04"]
[Round "4.3"]
[White "Lin, Bryan Enming"]
[Black "Jiang, Jason"]
[Result "1-0"]
[ECO "B76"]
[WhiteElo "2102"]
[BlackElo "1864"]
[Annotator "TA"]
[PlyCount "69"]
[EventDate "2024.02.02"]
[EventType "swiss"]
[EventCountry "USA"]
[SourceTitle "playchess.com"]
[Source "ChessBase"]
[SourceQuality "1"]
[TimeControl "5400+30"]

{[%evp 25,69,36,46,37,61,49,60,50,102,96,100,61,63,67,67,64,72,85,121,121,112,93,158,149,154,138,149,135,212,141,152,144,148,89,195,191,193,185,188,189,216,229,391,392,361,361]} 1. e4 {[%emt 0:00:03]} c5 {[%emt 0:00:38]} 2. Nf3 {[%emt 0:00:06]} d6 {[%emt 0:00:05]} 3. d4 {[%emt 0:00:04]} cxd4 {[%emt 0:00:05]} 4. Nxd4 {[%emt 0:00:11]} Nf6 {[%emt 0:00:04]} 5. Nc3 {[%emt 0:00:08]} g6 {[%emt 0:00:07]} 6. Be3 {[%emt 0:00:04]} Bg7 {[%emt 0:00:06]} 7. f3 {[%emt 0:00:07]} O-O {[%emt 0:00:07]} 8. Qd2 {[%emt 0:00:05]} Nc6 {[%emt 0:00:06]} 9. O-O-O {[%emt 0:00:04]} d5 {[%emt 0:00:05]} 10. Qe1 {[%emt 0:00:15]} e5 {[%emt 0:00:07]} 11. Nxc6 {[%emt 0:00:05]} bxc6 {[%emt 0:00:06]} 12. exd5 {[%emt 0:00:14]} Nxd5 {[%emt 0:00:07]} 13. Bc4 {[%emt 0:00:10]} Be6 {[%emt 0:00:05]} 14. Kb1 {[%emt 0:00:40]} Qc7 {[%emt 0:06:34]} 15. Nxd5 {[%emt 0:01:41]} (15. Bxd5 {with more complications.} cxd5 16. Nxd5 Qb7 17. Qa5) 15... cxd5 {[%emt 0:00:42]} 16. Bxd5 {[%emt 0:00:15] White is slightly better.} Bxd5 {[%emt 0:02:38]} ({Better is} 16... Rac8 $14) 17. Rxd5 $16 {[%emt 0:00:34]} Qb7 {[%emt 0:19:01]} 18. Rd3 {[%emt 0:01:32] White is more active.} e4 {[%emt 0:00:55]} 19. Rb3 {[%emt 0:00:09]} Qc6 {[%emt 0:00:21]} 20. fxe4 {[%emt 0:01:50]} Rac8 {[%emt 0:01:34]} 21. Qd2 {[%emt 0:06:32]} (21. Bxa7 $2 Qxc2+ 22. Ka1 Qxg2 $19) 21... a5 {[%emt 0:02:22]} 22. Rd3 {[%emt 0:03:02]} (22. Qxa5 $2 Qxc2+ (22... Qxe4 23. Qd2 $16) 23. Ka1 Rfd8 $19 (23... Qxe4 24. Re1 $17) (23... Qxg2 24. Re1 $17) (23... Qxe4 24. Re1 $17) (23... Qxg2 24. Rd1 $17)) 22... Qxe4 {[%emt 0:03:29]} 23. Rc1 {[%emt 0:01:10]} ({Not} 23. Qxa5 Rxc2 (23... Qxg2 24. Rc1 $11) 24. Kxc2 Qxg2+ 25. Qd2 Qxh1 $17) 23... Qe5 {[%emt 0:07:51]} ({Black should play} 23... a4) 24. Bd4 {[%emt 0:00:26]} Qc7 {[%emt 0:01:21]} 25. Bxg7 {[%emt 0:00:22]} Kxg7 {[%emt 0:00:06]} 26. c4 {[%emt 0:03:07]} Rfd8 {[%emt 0:01:56]} (26... a4 $16 27. c5 Rfd8 28. Rxd8 Qxd8 29. Qxd8 Rxd8) 27. g3 {[%emt 0:04:06]} Rxd3 {[%emt 0:00:49]} 28. Qxd3 {[%emt 0:00:09][%mdl 4096] Endgame. KQR-KQR} Qc5 {[%emt 0:01:08]} 29. b3 {[%emt 0:01:08]} (29. a4 $142) 29... Rc6 {[%emt 0:14:35]} (29... a4 $16) 30. Qc3+ {[%emt 0:01:45]} f6 {[%emt 0:05:23]} 31. Rd1 {[%emt 0:00:38]} Re6 {[%emt 0:00:48]} 32. Rd7+ {[%emt 0:01:06]} Kh6 {[%emt 0:03:13]} 33. Rd5 {[%emt 0:01:49]} Qg1+ {[%emt 0:00:58] [#]} (33... Qf2 {might work better.} 34. Qd2+ (34. Rxa5 $2 {loses.} Re1+ $19) 34... Qxd2 35. Rxd2 g5) 34. Qc1+ $18 {[%emt 0:00:49]} Qxc1+ {[%emt 0:00:24]} 35. Kxc1 {[%emt 0:00:02] Weighted Error Value: White=0.12 (very precise) /Black=0.30.  Mistake:       	White=1     	Black=5      Inaccurate:     	White=2     	Black=1      OK:         	White=8     	Black=7      Best:        	White=2     	---} 1-0